Cogmind - Beta 16.1 *** ADVENTURER MODE // 2026.02.22 @ 11:47:26 Player: 15K-U-RD5 Result: Self-destructed Performance ------------- Evolutions (2) 1000 Regions Visited (6) 1200 Robots Destroyed (22) 110 Value Destroyed (229) 229 Prototype IDs (23) 460 Alien Tech Used (0) 0 Bonus (300) 300 TOTAL SCORE: 3299 Bonus ------- Aligned with FarCom 300 Cogmind --------- Core Integrity 319/550 Matter 221/300 Energy 100/100 System Corruption 0% Temperature Cool (0) Movement Flying (35) Location -8/Materials Parts ------- > --- POWER (1) -------- (None) > --- PROPULSION (4) --- VTOL Module > --- UTILITY (4) ------ Improved Signal Interpreter Advanced Targeting Computer Improved Propulsion Shielding Trap Reconfigurator > --- WEAPON (2) ------- (None) > --- INVENTORY (5) ---- Light Ion Engine Datajack Peak State ------------ > --- POWER ------------ Deuterium Engine > --- PROPULSION ------- Flight Unit Flight Unit Flight Unit Flight Unit > --- UTILITY ---------- Improved Terrain Scanner Seismic Detector Improved Propulsion Shielding Trap Reconfigurator > --- WEAPON ----------- Light Assault Rifle > --- INVENTORY -------- Light Ion Engine Flight Unit Improved Signal Interpreter Propulsion Shielding Datajack [Rating: 24] Favorites ----------- Power Light Ion Engine Engine Light Ion Engine Propulsion Flight Unit Wheel Compact Wheel Flight Unit Flight Unit Utility Propulsion Shielding Device Seismic Detector Processor Improved Signal Interpreter Protection Propulsion Shielding Weapon Light Assault Rifle Energy Gun EM Pulse Gun Ballistic Gun Light Assault Rifle Build | -11 -10 -9 -9 -9 -8 -8 ------- Run | Yrd Mat Mat Min Exi Min Mat Slots Evolved 4 | . . 2 . . . 2 Power . | . . . . . . . Propulsion 2 | . . 2 . . . . Utility 2 | . . . . . . 2 Weapon . | . . . . . . . Parts Attached 24 | 7 5 2 3 . . 7 Power 2 | 1 . . . . . 1 Engine 2 | 1 . . . . . 1 Core . | . . . . . . . Reactor . | . . . . . . . Propulsion 11 | 2 2 2 3 . . 2 Treads . | . . . . . . . Leg . | . . . . . . . Wheel 2 | 2 . . . . . . Hover . | . . . . . . . Flight 9 | . 2 2 3 . . 2 Utility 7 | 2 1 . . . . 4 Device 3 | 2 . . . . . 1 Storage . | . . . . . . . Processor 2 | . . . . . . 2 Hackware . | . . . . . . . Protection 2 | . 1 . . . . 1 Artifact . | . . . . . . . Weapon 4 | 2 2 . . . . . Energy Gun 1 | 1 . . . . . . Energy Cannon . | . . . . . . . Ballistic Gun 3 | 1 2 . . . . . Ballistic Cannon . | . . . . . . . Launcher . | . . . . . . . Special Weapon . | . . . . . . . Impact Weapon . | . . . . . . . Slashing Weapon . | . . . . . . . Piercing Weapon . | . . . . . . . Special Melee Weapon . | . . . . . . . Unidentified Prototypes . | . . . . . . . Parts Lost 12 | . . . 2 . . 10 Power 1 | . . . . . . 1 Propulsion 6 | . . . 1 . . 5 Utility 2 | . . . . . . 2 Weapon 3 | . . . 1 . . 2 Highest Loss Streak 10 | . . . 2 . . 10 To Critical Strikes . | . . . . . . . Average Backups 3 | . 3 3 3 4 5 3 Power . | . . . . 1 1 1 Propulsion . | . 1 . . 1 1 . Utility . | . . 1 1 1 2 . Weapon . | . . 1 . . . . Tool/Special . | . . . . . . . Unused Backups 5 | 1 1 . . . . 3 Power 2 | 1 . . . . . 1 Propulsion 1 | . 1 . . . . . Utility 1 | . . . . . . 1 Weapon . | . . . . . . . Tool/Special 1 | . . . . . . 1 Average Slot Usage (%) 96 | . 98 97 96 100 100 90 Engine 10 | . 12 11 11 11 11 9 Wheel 2 | . 7 . . . . . Flight 33 | . 20 41 41 44 44 33 Device 16 | . 19 11 11 11 11 21 Protection 9 | . 8 11 11 11 11 9 Energy Gun 1 | . 3 . . . . . Ballistic Gun 20 | . 24 22 20 22 22 13 Peak Build Rating 24 | 9 9 9 9 12 12 24 Average Rating 11 | 4 7 8 8 10 12 21 On Entrance 8 | . 9 7 9 9 12 12 Avg Prop Armor Cover (%) 3 | . . . . . . 3 Naked Turns . | . . . . . . . Heaviest Build 15 | 9 9 8 8 7 7 15 Greatest Support 26 | 26 26 16 16 16 16 16 Greatest Overweight (x) 2 | . . . . . . 2 Average Overweight (x) . | . . . . . . . Largest Inventory Capacity 5 | 5 5 5 5 5 5 5 Average Capacity 5 | 5 5 5 5 5 5 5 Most Carried 5 | 3 5 4 5 5 5 5 Average Carried 3 | . 3 3 3 4 5 3 Final Capacity 5 | 5 5 5 5 5 5 5 Final Carried 5 | 1 5 3 4 5 5 2 Class Distribution -------------------- 33% | Scavenger-Sprinter 25% | Scavenger-Mutant 22% | Mutant 18% | Scavenger-Scout Dominant Class ---------------- Scavenger-Mutant | -10/Materials Scavenger-Sprinter | -9/Materials Scavenger-Sprinter | -9/Mines Scavenger-Sprinter | -9/Exiles Scavenger-Scout | -8/Mines Scavenger-Scout | -8/Materials Resources | -11 -10 -9 -9 -9 -8 -8 ----------- Run | Yrd Mat Mat Min Exi Min Mat Matter Collected 556 | 327 144 . 85 . . . Remotely . | . . . . . . . Salvage Created 476 | 154 228 . 94 . . . Parts 38 | 7 20 . 11 . . . Haulers Intercepted . | . . . . . . . Recyclers Shooed 2 | 1 . . 1 . . . Parts Field Recycled . | . . . . . . . Retrieved Matter . | . . . . . . . Parts Self-Destructed . | . . . . . . . Prevented . | . . . . . . . Parts Restored . | . . . . . . . Kills | -11 -10 -9 -9 -9 -8 -8 ------- Run | Yrd Mat Mat Min Exi Min Mat Combat Hostiles Destroyed 15 | . 9 . 6 . . . Guns 15 | . 9 . 6 . . . Classes Destroyed 5 | 3 2 . . . . . Worker 1 | 1 . . . . . . Tunneler 2 | 2 . . . . . . Recycler 1 | 1 . . . . . . Watcher 3 | . 3 . . . . . Swarmer 15 | . 9 . 6 . . . Best Kill Streak 8 | 3 8 . 6 . . . Combat Bots Only 6 | . 3 . 6 . . . Max Kills in Single Turn 2 | 1 2 . 1 . . . Gunslinging 1 | . 1 . . . . . Exploded . | . . . . . . . Melee . | . . . . . . . Uniques/NPCs Destroyed . | . . . . . . . Combat | -11 -10 -9 -9 -9 -8 -8 -------- Run | Yrd Mat Mat Min Exi Min Mat Hostile Shots Fired 196 | . 29 7 49 . . 111 Missed 73 | . 4 4 22 . . 43 Hits 123 | . 25 3 27 . . 68 Projectile 123 | . 25 3 27 . . 68 Critical Strikes 4 | . . . 2 . . 2 Actively Blocked 3 | . . . 1 . . 2 Damage Taken 1013 | . 145 24 155 . . 689 Core 294 | . 25 8 30 . . 231 Absorbed by Shields . | . . . . . . . Redirected to Shielding 101 | . . . 10 . . 91 Ignored by Resistances 311 | . 50 9 54 . . 198 Regen/Repaired (Parts) 12 | . 12 . . . . . Core Remaining (%) 93 | 100 90 . . . 90 . Volleys Fired 63 | 19 24 . 14 3 . 3 Largest 2 | 2 2 . 2 2 . 2 Hottest 60 | 60 60 . 40 40 . 40 Shots Fired 109 | 24 48 . 25 6 . 6 Gun 109 | 24 48 . 25 6 . 6 Cannon . | . . . . . . . Launcher . | . . . . . . . Special . | . . . . . . . Kinetic 90 | 19 34 . 25 6 . 6 Thermal . | . . . . . . . Explosive . | . . . . . . . Electromagnetic 19 | 5 14 . . . . . Robot Hit Streak 7 | 6 7 . 7 . . 3 Robot Miss Streak 3 | 2 3 . 3 . . 1 Penetration Max . | . . . . . . . Secondary Targets 4 | . 1 . 3 . . . Max Gunslinging Chain 1 | . 1 . 1 . . . Shots Hit Robots 63 | 17 27 . 15 . . 4 Core Hits 28 | 5 13 . 9 . . 1 Critical Kills . | . . . . . . . Critical Parts Destroyed . | . . . . . . . Critical Strikes . | . . . . . . . Melee Attacks . | . . . . . . . Impact . | . . . . . . . Slashing . | . . . . . . . Piercing . | . . . . . . . Sneak Attacks . | . . . . . . . Combat Hostiles . | . . . . . . . Follow-up Attacks . | . . . . . . . Damage Inflicted 810 | 233 334 . 160 . . 83 Guns 758 | 233 334 . 160 . . 31 Cannons . | . . . . . . . Explosions 44 | . . . . . . 44 Melee . | . . . . . . . Ramming 8 | . . . . . . 8 Kinetic 618 | 180 247 . 160 . . 31 Thermal 44 | . . . . . . 44 Explosive . | . . . . . . . Electromagnetic 140 | 53 87 . . . . . Impact . | . . . . . . . Slashing . | . . . . . . . Piercing . | . . . . . . . Highest Corruption 1 | . 1 . . . . . Average Corruption 1 | . 1 . . . . . Corruption Purged . | . . . . . . . Corruption Blocked . | . . . . . . . Overload Shots . | . . . . . . . Overflow Damage . | . . . . . . . Projectiles . | . . . . . . . Explosions . | . . . . . . . Melee . | . . . . . . . Knockbacks . | . . . . . . . Impact . | . . . . . . . Kinetic . | . . . . . . . Secondary . | . . . . . . . Self-Inflicted Damage 52 | . . . . . . 52 Shots 1 | . . . . . . 1 Rammed 1 | . . . . . . 1 Targets Rammed 1 | . . . . . . 1 Kicked . | . . . . . . . Crushed . | . . . . . . . Highest Temperature 20 | . 20 3 6 4 . 7 Average Temperature 4 | . 6 3 2 2 . 6 Received Heat Transfer 153 | . . 18 . . . 135 Siege Activations . | . . . . . . . Martial Activations . | . . . . . . . Shielding Activations . | . . . . . . . Robots Disrupted . | . . . . . . . Combat Hostiles . | . . . . . . . Robots Corrupted . | . . . . . . . Combat Hostiles . | . . . . . . . Parts Fried . | . . . . . . . Impact Corruptions . | . . . . . . . Robots Melted . | . . . . . . . Combat Hostiles . | . . . . . . . Parts Melted . | . . . . . . . Heat Transferred 50 | . . . . . . 50 Parts Sabotaged . | . . . . . . . Parts Stolen . | . . . . . . . Parts Stripped . | . . . . . . . Power Chain Reactions . | . . . . . . . Alert | -11 -10 -9 -9 -9 -8 -8 ------- Run | Yrd Mat Mat Min Exi Min Mat Maximum Alert Level . | . . . . . . . Low Security (%) 100 | 100 100 100 100 . 100 100 Level 1 . | . . . . . . . Level 2 . | . . . . . . . Level 3 . | . . . . . . . Level 4 . | . . . . . . . Level 5 . | . . . . . . . High Security . | . . . . . . . Max Security . | . . . . . . . Peak Influence 160 | 5 135 34 122 . . 160 Initial 34 | . 2 34 7 . . . Average 52 | 1 89 29 88 . . 31 Influence Increases 706 | 20 236 . 155 . . 295 Destroy 0b10 Robot/C 300 | . 180 . 120 . . . Destroy 0b10 Robot/NC 35 | 20 15 . . . . . Destroy Leader 56 | . 36 . 20 . . . Trap Triggered on 0b10 10 | . . . . . . 10 Successful Hack 4 | . 4 . . . . . Disable Machine 9 | . . . . . . 9 Destroy Structure 22 | . 1 . . . . 21 Lose Combat Pursuer 270 | . . . 15 . . 255 Influence Decreases 581 | 15 145 72 77 102 . 170 Entered New Map 184 | . 3 62 17 102 . . Time Decay 277 | 15 142 10 40 . . 70 Lost Part 120 | . . . 20 . . 100 Squads Dispatched 6 | . . . . . . 6 Investigation 1 | . . . . . . 1 Extermination . | . . . . . . . Reinforcement 3 | . . . . . . 3 Assault . | . . . . . . . Garrison 2 | . . . . . . 2 Intercept . | . . . . . . . Searches Triggered . | . . . . . . . Construction Impeded . | . . . . . . . Haulers Reinforced . | . . . . . . . Active Scanning Responses . | . . . . . . . Cargo Convoy Interrupts . | . . . . . . . Stealth | -11 -10 -9 -9 -9 -8 -8 --------- Run | Yrd Mat Mat Min Exi Min Mat Distress Signals 5 | . 1 1 . . . 3 Communications Jammed . | . . . . . . . Distress Signals . | . . . . . . . Times Spotted 64 | . 11 7 9 . . 37 Peak Tracking Total 15 | . 4 8 7 . . 15 Tactical Retreats 5 | . . . 1 . . 4 Traps | -11 -10 -9 -9 -9 -8 -8 ------- Run | Yrd Mat Mat Min Exi Min Mat Traps Triggered 5 | . 3 . . . . 2 Indirectly . | . . . . . . . Trap Hack Attempts . | . . . . . . . Triggered . | . . . . . . . Disarmed . | . . . . . . . Reprogrammed . | . . . . . . . Reused 1 | . . . . . . 1 Traps Reconfigurated 1 | . . . . . . 1 Traps Extracted . | . . . . . . . Installed . | . . . . . . . Triggered 1 | . . . . . . 1 Machines | -11 -10 -9 -9 -9 -8 -8 ---------- Run | Yrd Mat Mat Min Exi Min Mat Machines Disabled 1 | . . . . . . 1 Max in Single Turn 1 | . . . . . . 1 Machines Repaired . | . . . . . . . Machines Dismantled . | . . . . . . . Machines Sabotaged . | . . . . . . . Overloaded Fab Kills . | . . . . . . . Hacking | -11 -10 -9 -9 -9 -8 -8 --------- Run | Yrd Mat Mat Min Exi Min Mat Machines Accessed 8 | . 3 . . 4 . 1 Terminals 2 | . 2 . . . . . Fabricators . | . . . . . . . Repair Stations 1 | . 1 . . . . . Recycling Units 1 | . . . . . . 1 Scanalyzers . | . . . . . . . Garrison Access . | . . . . . . . Total Hacks 16 | . 6 . . 9 . 1 Successful 15 | . 5 . . 9 . 1 Failed 1 | . 1 . . . . . Catastrophic . | . . . . . . . Database Lockouts . | . . . . . . . Manual 3 | . . . . 2 . 1 Terminals 2 | . 2 . . . . . Fabricators . | . . . . . . . Repair Stations 4 | . 4 . . . . . Recycling Units 1 | . . . . . . 1 Scanalyzers . | . . . . . . . Garrison Access . | . . . . . . . Terminal Hacks 11 | . 2 . . 9 . . Record 9 | . 1 . . 8 . . Assault Status 1 | . 1 . . . . . Proto ID Catalog 1 | . . . . 1 . . Fabricator Hacks . | . . . . . . . Repair Station Hacks 3 | . 3 . . . . . Scan Component 2 | . 2 . . . . . Repair 1 | . 1 . . . . . Recycling Unit Hacks 1 | . . . . . . 1 Report Inventory 1 | . . . . . . 1 Scanalyzer . | . . . . . . . Garrison Access Hacks . | . . . . . . . Unauthorized Hacks . | . . . . . . . Terminals . | . . . . . . . Fabricators . | . . . . . . . Repair Stations . | . . . . . . . Recycling Units . | . . . . . . . Scanalyzers . | . . . . . . . Garrison Access . | . . . . . . . Data Cores Recovered . | . . . . . . . Used . | . . . . . . . Hacking Detections 2 | . 1 . . . . 1 Full Trace Events . | . . . . . . . Feedback Events . | . . . . . . . Feedback Blocked . | . . . . . . . Robot Schematics Acquired . | . . . . . . . Robots Built . | . . . . . . . Authchips . | . . . . . . . Time . | . . . . . . . Total Robot Build Rating . | . . . . . . . Part Schematics Acquired . | . . . . . . . Parts Built . | . . . . . . . Authchips . | . . . . . . . Time . | . . . . . . . Total Part Build Rating . | . . . . . . . Part Studies Acquired . | . . . . . . . Parts Repaired 1 | . 1 . . . . . Time 26 | . 26 . . . . . Parts Recycled . | . . . . . . . Recycled Matter . | . . . . . . . Retrieved Matter . | . . . . . . . Retrieved Components . | . . . . . . . Parts Scanalyzed . | . . . . . . . Part Schematics Acquired . | . . . . . . . Parts Damaged . | . . . . . . . Bothacking | -11 -10 -9 -9 -9 -8 -8 ------------ Run | Yrd Mat Mat Min Exi Min Mat Used RIF Installer . | . . . . . . . Robots Hacked . | . . . . . . . Non-combat . | . . . . . . . Combat . | . . . . . . . Robot Hacks Applied . | . . . . . . . Relay Couplers Released . | . . . . . . . Fabnet Peak Effective % . | . . . . . . . Robots Rewired . | . . . . . . . Allies Hacked . | . . . . . . . Hacks Repelled . | . . . . . . . Allies | -11 -10 -9 -9 -9 -8 -8 -------- Run | Yrd Mat Mat Min Exi Min Mat Total Allies 2 | . . . 2 . . . Largest Group 2 | . . . 2 2 . . Highest-Rated Group 49 | . . . 49 49 . . Highest-Rated Ally 31 | . . . 31 31 . . Total Orders . | . . . . . . . Ally Attacks . | . . . . . . . Total Damage . | . . . . . . . Kills . | . . . . . . . Allies Corrupted . | . . . . . . . Allies Melted . | . . . . . . . Intel | -11 -10 -9 -9 -9 -8 -8 ------- Run | Yrd Mat Mat Min Exi Min Mat Active Infowar (turns) 978 | 23 313 38 92 264 46 202 Terrain 500 | 23 118 . . 111 46 202 Seismic 664 | 18 313 38 92 153 . 50 Robot Analysis Total . | . . . . . . . Derelict Logs Recovered 1 | . . . 1 . . . Drone Launches . | . . . . . . . Drone Recoveries . | . . . . . . . Exploration | -11 -10 -9 -9 -9 -8 -8 ------------- Run | Yrd Mat Mat Min Exi Min Mat Turns Passed 1148 | 108 313 38 92 264 46 287 Spaces Moved 2065 | 59 477 114 117 797 147 354 Core 11 | 11 . . . . . . Treads . | . . . . . . . Legs . | . . . . . . . Wheels 92 | 48 44 . . . . . Hover . | . . . . . . . Flight 1962 | . 433 114 117 797 147 354 Fastest Speed 31 | 50 37 31 31 31 31 31 Average Speed 36 | 82 41 31 31 31 31 40 Slowest Speed 195 | 90 90 31 31 31 31 195 Overloaded Moves . | . . . . . . . Propulsion Burnouts . | . . . . . . . Robots Hopped 17 | . 1 . . . 1 15 Potential Cave-ins . | . . . . . . . Cave-ins Triggered . | . . . . . . . Exploration Rate (%) 45 | 4 76 16 35 93 53 40 Regions Visited 6 Branch Regions 3 Pre-discovered Areas 1 | . . . . 1 . . Known Exits Taken . | . . . . . . . Unknown Exits Taken 6 | 1 1 1 1 1 1 . Scrap Searched . | . . . . . . . Spaces Dug . | . . . . . . . Terrain Destroyed 24 | . . . . . . 24 Melee . | . . . . . . . Projectile . | . . . . . . . AOE 24 | . . . . . . 24 Terrain Rammed . | . . . . . . . Walls Destroyed . | . . . . . . . Machines Disabled . | . . . . . . . Actions | -11 -10 -9 -9 -9 -8 -8 --------- Run | Yrd Mat Mat Min Exi Min Mat Total 2332 | 94 544 115 149 807 145 478 Wait 155 | . 23 . 8 6 . 118 Move 2030 | 58 474 113 116 796 144 329 Hop 12 | . 1 . . . 1 10 Pick Up 30 | 9 10 . 5 1 . 5 Fast Attach . | . . . . . . . Attach 22 | 7 5 2 2 . . 6 Detach . | . . . . . . . Swap 8 | . 2 . 2 1 . 3 Drop 11 | 1 5 . 2 . . 3 Fire 63 | 19 24 . 14 3 . 3 Melee . | . . . . . . . Ram 1 | . . . . . . 1 Kick . | . . . . . . . Crush . | . . . . . . . Escape Stasis . | . . . . . . . Rewire . | . . . . . . . Trap . | . . . . . . . Miscellaneous . | . . . . . . . Route ------- -11/Scrapyard -10/Materials (discovered 3 exits: [*Mat x2] / [*Min]) -9/Materials -9/Mines -9/Exiles (discovered 2 exits: [*Min x2]) -8/Mines -8/Materials (discovered 1 exit: [*Sto]) History --------- Turn | Location | Event 33 | -11/Scrapyard | Discovered new exit (range 14) 109 | -11/Scrapyard | Entered Materials 222 | -10/Materials | Discovered new exit (range 15) 265 | -10/Materials | Repaired Lgt. Ion Engine 339 | -10/Materials | Discovered new exit (range 12) 407 | -10/Materials | Discovered new exit (range 16) 422 | -10/Materials | Entered another Materials area 422 | -9/Materials | Evolved 2 slots: Propulsion x2 457 | -9/Materials | Discovered new exit (range 8) 460 | -9/Materials | Entered Mines 538 | -9/Mines | Deemed a non-threat by the Exiles lab entrance 539 | -9/Mines | Discovered new exit (range 5) 552 | -9/Mines | Entered Exiles 552 | -9/Exiles | Accompanied by 2 allies 557 | -9/Exiles | Discovered new exit (range 15) 581 | -9/Exiles | Met 8R-AWN 582 | -9/Exiles | Led the pair of lost Derelicts to a safe place 586 | -9/Exiles | Met EX-HEX 604 | -9/Exiles | Met EX-DEC 611 | -9/Exiles | Visited The Gauntlet 648 | -9/Exiles | Learned location of Zion (-7) 661 | -9/Exiles | Discovered new exit (range 10) 690 | -9/Exiles | Met EX-BIN 698 | -9/Exiles | Aligned with FarCom system 698 | -9/Exiles | Given EX-Vault access code 726 | -9/Exiles | Build established: Scavenger-Sprinter 728 | -9/Exiles | Opened EX-Vault 730 | -9/Exiles | Found Prototype Device 731 | -9/Exiles | Identified Trap Reconfigurator 741 | -9/Exiles | Warned to stay clear of 0b10 Research branches 816 | -9/Exiles | Left Exiles lab with Trap Reconfigurator 816 | -9/Exiles | Entered Mines 858 | -8/Mines | Discovered new exit (range 9) 862 | -8/Mines | Entered Materials 862 | -8/Materials | Evolved 2 slots: Utility x2 1014 | -8/Materials | Garrison activated, responded to threat 1112 | -8/Materials | Discovered new exit (range 13) 1149 | -8/Materials | Self-destructed Last Messages --------------- U-05 Engineer lays Concrete. W-25 Informer distress signal alerts nearby ally. Lgt. Assault Rifle destroyed. O-16 Technician: "IFF HANDSHAKE FAILED. SECURING TERMINAL." Acquired Adv. Targeting Computer. Flight Unit destroyed. EXIT=FOUND Flight Unit destroyed. Penetrated by Slug. Acquired VTOL Module. Flight Unit destroyed. ALERT: Hostiles spotted, dispatching reinforcements to Terminal M002. Triggered Alarm Trap. An alarm sounds. ALERT: Alarm triggered, dispatching investigation squad. Flight Unit destroyed. Slug penetrates Wall. W-25 Informer distress signal alerts nearby ally. Deuterium Engine destroyed. Slug penetrates Wall. Map ----- +----------------------------------------------------+ | ?????????????????????????????#! """ # ##??? | | ?????????????????????????????# #!/ #???? | | ?????????????????????????????########!/ #???? | | ????????????????????????????????????# ##??# | | ????????????????????????????????????# #???? | | ???????????????????????????????????? #???? | | ????????????????????????????????????########???? | | ???????????????????????????????????????????????? | | ???????????????????????????????????????????????? | | ???????????????????????????????????????????????? | | ???????????????????????????????????????????????? | | ??????????????????????????????????Y????????????? | | ???????????????????????????????????????????????? | | ???????????????????????????????????? ??????????? | | ???????????????????????????????????????????????? | | ???????????????????????????????????????????????? | | ???????????????????????????????????????????????? | | ???????????????????????????????????????????????? | | ???????????????????????????????????????????????? | | ???????????????????????????????????????????????? | | ????????????????????????????????###+###????????? | | ????????????????????????????????# ########## | | ????????????????????????????????# | | ???????????????################## T | | ????? ####### | | ????? w @ Y###### ########## | | ???? < gg s #???####+#####??????? | | ????? s ! ##### #???# #??????? | | ?????????#"T"### h #???# #???# """ #??????? | | ??????s??????#####+#####?# #???# """ #??????? | | ?????????????# #?# #???# """ #??????? | | ?????????????# ] g ###Y#???# #??????? | | ?????????????# ]] + g #???# "" !! #??????? | | ?????????????# ] # #???# "T !! #??????? | | ?????????????########### #???# "" !! #??????? | | ??????????????????????g #???# #?????? | | ?????????????????????? #???###########?????? | | ????????????????????? #???????????????????? | | ???????????????????? +???????????????????? | | ???????????????????####+## #???????????????????? | | ?????????????????????????? #???????????????????? | | ?????????????????????????? #???????????????????? | | ?????????????????????????? #???????????????????? | | ?????????????????????????? #???????????????????? | | ?????????????????????????? #???????????????????? | | ?????????????????????????? ????????????????????? | | ?????????????????????????? ????????????????????? | | ???????????????????????????????????????????????? | | ???????????????????????????????????????????????? | | ???????????????????????????????????????????????? | +----------------------------------------------------+ Best States ------------- Heat Dissipation 31 Energy Generation 14 Energy Capacity 275 Matter Stores 300 Matter Capacity 300 Sight Range 16 Terrain Scan Range 16 Terrain Scan Density 10 Resistance: KI 20 Resistance: TH 20 Resistance: EX 20 Resistance: EM 20 Resistance: I 20 Resistance: S 20 Resistance: P 20 Propulsion Shielding 66 Evasion (%) 63 Targeting Accuracy 8 Offensive Hacking 10 Item Schematics ----------------- None Robot Schematics ------------------ None Fabricated ------------ Nothing Repaired ---------- Lgt. Ion Engine | 70% | -10/Materials Studied --------- None Alien Tech Used ----------------- None Achievements -------------- Cya! Sixth Sense Challenges ------------ None Game ------ Seed ImpulseBlanketOptics Manual? 0 Play Time 00:29:59 Cumulative 5.5 hours Start 2026.02.22 @ 11:17:46 End 2026.02.22 @ 11:47:26 Sessions 1 Manual Loads 0 Difficulty Adventurer Special Mode None Game No. 11 Rogue 0 Adventurer 11 Explorer 0 Win Type - Total 0 Types 0/0/0/0/0/0/0/0/0/0 Lore% 3 Gallery% 12 Achievement% 11 Wizard Run 0 Options --------- Layout 0 ASCII 0 Keyboard 0 Movement Mouse Keybinds 0 Fullscreen 2 Font 32/Smallcaps Map View 88x55 Zoom Use 0% Tactical HUD 0 Map Filters NONE Filters NONE Steam 1 RUN: 8e2516f6-f796-431c-a5db-ae52d78ce500